[Event "Oberliga Wuerttemberg 2023-24"]
[Site "Wuerttemberg"]
[Date "2024.04.14"]
[Round "9.25"]
[White "Krassowizkij, Jaroslaw"]
[Black "Dabo-Peranic, Robert"]
[Result "1-0"]
[ECO "D26"]
[WhiteElo "2431"]
[BlackElo "2345"]
[Annotator "TA"]
[PlyCount "57"]
[EventDate "2024.03.14"]
[EventType "team-tourn"]
[EventCountry "GER"]
[SourceTitle "playchess.com"]
[Source "ChessBase"]
[SourceQuality "1"]
[TimeControl "40/5400+30:1800+30"]

{[%evp 13,57,37,29,16,37,50,43,47,56,53,54,54,32,75,33,28,125,25,296,289,554,558,552,540,571,520,528,583,568,589,593,576,590,588,585,600,586,575,622,641,663,623,762,761,1529,1472]} 1. d4 {[%emt 0:00:04]} d5 {[%emt 0:00:07]} 2. c4 {[%emt 0:00:06]} dxc4 {[%emt 0:00:02]} 3. e3 {[%emt 0:00:05]} Nf6 {[%emt 0:00:31]} 4. Bxc4 {[%emt 0:00:16]} e6 {[%emt 0:00:08]} 5. Nf3 {[%emt 0:00:02]} a6 {[%emt 0:00:08]} 6. O-O {[%emt 0:00:06]} b5 {[%emt 0:00:41]} 7. Bd3 {[%emt 0:00:06]} Bb7 {[%emt 0:01:41]} 8. a4 {[%emt 0:00:05]} Nbd7 {[%emt 0:00:20]} 9. axb5 {[%emt 0:01:10]} axb5 {[%emt 0:00:01]} 10. Rxa8 {[%emt 0:00:07] White is slightly better.} Qxa8 {[%emt 0:00:03]} 11. Bxb5 {[%emt 0:00:09]} Be7 {[%emt 0:00:05]} 12. Qa4 {[%emt 0:06:35]} Bxf3 {[%emt 0:00:27]} 13. gxf3 {[%emt 0:00:03]} Qxf3 {[%emt 0:00:09]} 14. Nd2 {[%emt 0:04:21]} Qg4+ {[%emt 0:00:45]} 15. Kh1 {[%emt 0:00:05]} Bd6 $2 {[%emt 0:00:14][%mdl 8192] [#] Loses the game.} (15... Qh3 $1 $11 {and Black has nothing to worry.}) 16. Bxd7+ $1 $18 {[%emt 0:11:43]} Nxd7 $2 {[%emt 0:00:23]} (16... Ke7 {was worth a try.} 17. Bb5 Bxh2) 17. Qa8+ {[%emt 0:01:44] White is clearly winning.} Ke7 {[%emt 0:00:10]} 18. Qxh8 {[%emt 0:00:17]} Nf6 {[%emt 0:43:07][%cal Bd7f6,Bf6g4,Bg4f2][%mdl 32] Hoping for ...Qh3.} 19. f4 {[%emt 0:10:55]} Qe2 {[%emt 0:09:16][%cal Of6e4]} 20. Qxg7 {[%emt 0:01:03]} Ng4 {[%emt 0:01:19][%csl Gg4][%cal Re2h2]} 21. Qxh7 {[%emt 0:09:38]} Bb4 {[%emt 0:03:35] [#]} 22. Qh3 $1 {[%emt 0:04:07]} Nf2+ {[%emt 0:05:36] [#]} 23. Rxf2 $1 {[%emt 0:00:09]} Qxf2 {[%emt 0:00:07]} 24. Nf3 {[%emt 0:00:30]} Qc2 {[%emt 0:00:13]} 25. Qf1 {[%emt 0:00:08]} f6 {[%emt 0:00:31]} 26. h4 {[%emt 0:02:43][%cal Bh2h4,Bh4h5][%mdl 32]} Kd6 {[%emt 0:00:06]} 27. Kg1 {[%emt 0:05:31]} c6 {[%emt 0:00:01]} 28. h5 {[%emt 0:01:30]} Qf5 {[%emt 0:00:02]} 29. Qc4 {[%emt 0:02:02] Weighted Error Value: White=0.02 (flawless) /Black=0.55.  Loses game:     	---       	Black=1      Mistake:       	---       	Black=1      Inaccurate:     	White=1     	---        OK:         	White=10    	Black=5      Best:        	White=2     	Black=1      Strong:       	White=1     	---        Brilliant:      	White=1     	---} 1-0

[Event "Oberliga Wuerttemberg 2023-24"]
[Site "Wuerttemberg"]
[Date "2024.04.14"]
[Round "9.27"]
[White "Anistratov, Dmitriy"]
[Black "Ruf, Matthias"]
[Result "0-1"]
[ECO "B06"]
[WhiteElo "2275"]
[BlackElo "2310"]
[Annotator "TA"]
[PlyCount "120"]
[EventDate "2024.03.14"]
[EventType "team-tourn"]
[EventCountry "GER"]
[SourceTitle "playchess.com"]
[Source "ChessBase"]
[SourceQuality "1"]
[TimeControl "40/5400+30:1800+30"]

{[%evp 17,120,41,43,45,33,29,53,15,20,16,4,0,0,0,24,0,45,13,16,0,0,0,15,11,17,-14,1,0,0,0,19,0,0,-8,0,0,0,0,0,-20,-23,-44,-43,-62,-51,-87,-45,-72,-72,-68,-43,-75,-39,-63,-43,-190,-153,-179,-92,-110,-122,-448,-438,-597,-599,-885,-882,-1213,-1142,-1181,-782,-1022,-748,-1388,-1104,-1127,-1099,-1074,-753,-747,-711,-1434,-1378,-1659,-1465,-2208,-2138,-3195,-3195,-3265,-2907,-29983,-29984,-29985,-29986,-29986,-29987,-29988,-29989,-29991,-29992,-29993,-29994,-29994,-29995]} 1. e4 {[%emt 0:00:07]} g6 {[%emt 0:02:40]} 2. d4 {[%emt 0:01:41]} Bg7 {[%emt 0:00:38]} 3. Nc3 {[%emt 0:01:01]} d6 {[%emt 0:01:39]} 4. Nf3 {[%emt 0:00:29]} a6 {[%emt 0:01:18]} 5. a4 {[%emt 0:01:11]} Bg4 {[%emt 0:02:33]} 6. Be3 {[%emt 0:00:52]} Nc6 {[%emt 0:00:33]} 7. Be2 {[%emt 0:06:22]} e5 {[%emt 0:01:40]} 8. dxe5 {[%emt 0:00:39]} dxe5 {[%emt 0:04:08]} 9. Qxd8+ {[%emt 0:11:05]} Rxd8 {[%emt 0:01:33]} 10. Nd5 {[%emt 0:01:40]} Rd7 {[%emt 0:00:31]} 11. O-O-O {[%emt 0:02:57]} h6 {[%emt 0:03:24]} 12. Bc5 {[%emt 0:15:37] White is slightly better.} Nf6 {[%emt 0:03:24]} 13. Nxf6+ {[%emt 0:02:57]} (13. Rhe1 {looks sharper.} Nxe4 14. Nxe5 Rxd5 15. Rxd5 Be6 16. Nxc6 Bxd5 17. Bd4) 13... Bxf6 {[%emt 0:00:31]} 14. Rxd7 {[%emt 0:00:24]} Bxd7 {[%emt 0:02:50]} 15. Bc4 {[%emt 0:02:24]} b6 {[%emt 0:13:31]} 16. Be3 {[%emt 0:02:24]} Nd8 {[%emt 0:05:40]} 17. Bxa6 {[%emt 0:07:52]} Bxa4 {[%emt 0:00:09]} 18. h4 {[%emt 0:07:09][%cal Bh2h4,Bh4h5][%mdl 32]} Bc6 {[%emt 0:03:06]} 19. Bd3 {[%emt 0:01:53]} Bg7 {[%emt 0:03:25][%cal Of7f5]} 20. h5 {[%emt 0:07:49]} g5 {[%emt 0:13:00][%cal Of7f5] Wards off Nh4} 21. Bd2 {[%emt 0:10:33]} O-O {[%emt 0:01:37]} 22. Bc3 {[%emt 0:00:33]} Re8 {[%emt 0:00:22]} 23. Re1 {[%emt 0:00:38]} Bd7 {[%emt 0:02:34]} 24. Nh2 {[%emt 0:01:31]} Ne6 {[%emt 0:03:00]} 25. g3 {[%emt 0:04:16] Prevents Nf4} b5 {[%emt 0:06:14]} 26. Ng4 {[%emt 0:03:26]} Nd4 {[%emt 0:11:20]} 27. Ne3 {[%emt 0:00:06]} c5 {[%emt 0:02:12]} 28. Nf5 {[%emt 0:04:14]} c4 {[%emt 0:03:07] [#] Hoping for ...Nxf5.} 29. Nxg7 {[%emt 0:00:36]} Kxg7 {[%emt 0:00:05]} 30. Bf1 {[%emt 0:01:06][%cal Of2f4]} Bg4 {[%emt 0:00:30]} 31. f4 {[%emt 0:00:56]} f6 {[%emt 0:00:39]} 32. fxg5 {[%emt 0:00:28]} fxg5 {[%emt 0:00:59]} (32... Bxh5 33. gxf6+ Kxf6 34. b3 $15) 33. b3 {[%emt 0:01:10]} cxb3 {[%emt 0:03:13] [#] And now ...Rc8 would win. Black is more active.} 34. Bxd4 {[%emt 0:00:32]} exd4 {[%emt 0:00:07]} 35. cxb3 $15 {[%emt 0:00:14][%mdl 4096] Endgame. KRB-KRB} Rc8+ {[%emt 0:03:13]} (35... Bxh5 36. Kd2) 36. Kb2 {[%emt 0:00:45]} (36. Kd2 $15) 36... Rc3 $19 {[%emt 0:00:41]} (36... Bxh5 37. Bxb5 Rc3 38. e5 $17) 37. Bxb5 {[%emt 0:00:20]} Rxg3 {[%emt 0:00:38]} ({Don't do} 37... Bxh5 38. e5 $17) 38. e5 {[%emt 0:00:42]} Bxh5 {[%emt 0:01:14]} 39. e6 $2 {[%emt 0:00:33][%mdl 8192]} (39. b4 $17) 39... Re3 {[%emt 0:00:44]} 40. Rh1 {[%emt 0:00:29]} Bf3 {[%emt 0:00:46]} 41. Rf1 {[%emt 0:01:13][%cal Of1f3]} g4 {[%emt 0:00:12][%cal Oh6h5]} 42. Bc4 {[%emt 0:00:24]} Kf6 {[%emt 0:03:50]} 43. b4 {[%emt 0:01:10]} Rc3 {[%emt 0:02:07]} 44. Bb3 {[%emt 0:03:22]} h5 {[%emt 0:01:59]} 45. Re1 {[%emt 0:03:20]} Rc7 {[%emt 0:01:16]} 46. b5 {[%emt 0:00:31]} Re7 {[%emt 0:07:03]} 47. Rc1 {[%emt 0:11:53]} Bb7 {[%emt 0:04:24]} 48. Rf1+ {[%emt 0:01:54]} Ke5 {[%emt 0:04:23] aiming for ...g3.} 49. Rf7 {[%emt 0:01:12]} Kd6 {[%emt 0:00:07] Threatens to win with ...g3.} 50. Rf4 {[%emt 0:05:48]} g3 {[%emt 0:02:38] ...g2 is the strong threat.} 51. Rxd4+ {[%emt 0:00:27]} Ke5 {[%emt 0:03:58]} 52. Rh4 {[%emt 0:01:50]} Bf3 {[%emt 0:02:21] ( -> ...g2)} 53. Rc4 {[%emt 0:01:59]} g2 {[%emt 0:00:40]} ({Not} 53... Kxe6 54. Rc3+ (54. Rf4+ Bd5 $17) 54... Kd6 (54... Bd5 55. Rxg3 Bxb3 56. Kxb3 $11) 55. Rxf3 $11) 54. Rc1 {[%emt 0:00:16]} h4 {[%emt 0:00:05] Black mates.} 55. Re1+ {[%emt 0:00:35]} Kf4 {[%emt 0:00:17]} 56. b6 {[%emt 0:00:30]} h3 {[%emt 0:00:11]} 57. Rc1 {[%emt 0:01:16]} h2 {[%emt 0:00:16]} 58. Rc7 {[%emt 0:00:02]} g1=Q {[%emt 0:00:48]} 59. Rxe7 {[%emt 0:00:12]} Qd4+ {[%emt 0:00:13]} 60. Ka2 {[%emt 0:00:10]} h1=Q {[%emt 0:00:10] Weighted Error Value: White=0.97/Black=0.41.  Loses game:     	White=1     	---        Mistake:       	White=1     	---        Inaccurate:     	White=8     	Black=3      OK:         	White=6     	Black=14     Best:        	White=3     	Black=3} 0-1

[Event "Oberliga Wuerttemberg 2023-24"]
[Site "Wuerttemberg"]
[Date "2024.04.14"]
[Round "9.28"]
[White "Koellner, Aaron Noah"]
[Black "Stiepan, Hans-Michael"]
[Result "1/2-1/2"]
[ECO "D05"]
[WhiteElo "2104"]
[BlackElo "2120"]
[Annotator "RC"]
[PlyCount "155"]
[EventDate "2024.03.14"]
[EventType "team-tourn"]
[EventCountry "GER"]
[SourceTitle "playchess.com"]
[Source "ChessBase"]
[SourceQuality "1"]
[TimeControl "40/5400+30:1800+30"]

1. d4 {[%emt 0:00:03]} e6 {[%emt 0:00:10]} 2. Nf3 {[%emt 0:00:06]} Nf6 {[%emt 0:00:08]} 3. Nbd2 {[%emt 0:00:29]} d5 {[%emt 0:00:45]} 4. e3 {[%emt 0:00:05]} c5 {[%emt 0:00:51]} 5. b3 {[%emt 0:00:06]} Bd6 {[%emt 0:00:08]} 6. dxc5 {[%emt 0:00:04]} Bxc5 {[%emt 0:00:10]} 7. Bb2 {[%emt 0:00:04]} Nc6 {[%emt 0:02:03]} 8. a3 {[%emt 0:01:04]} O-O {[%emt 0:01:49]} 9. Bd3 {[%emt 0:04:52]} Re8 {[%emt 0:03:34]} 10. b4 {[%emt 0:00:11]} Bb6 {[%emt 0:09:28]} 11. c4 {[%emt 0:13:35]} d4 {[%emt 0:10:34]} 12. exd4 {[%emt 0:00:20]} Nxd4 {[%emt 0:05:15]} 13. c5 {[%emt 0:10:58]} Nxf3+ {[%emt 0:02:35]} 14. Qxf3 {[%emt 0:00:09]} Bc7 {[%emt 0:00:15]} 15. Rd1 {[%emt 0:02:48]} e5 {[%emt 0:02:43]} 16. Ne4 {[%emt 0:00:48]} Qe7 {[%emt 0:08:01]} 17. O-O {[%emt 0:02:29]} Rb8 {[%emt 0:02:59]} 18. Rfe1 {[%emt 0:08:31]} Be6 {[%emt 0:04:22]} 19. Nxf6+ {[%emt 0:02:44]} Qxf6 {[%emt 0:00:24]} 20. Qe4 {[%emt 0:01:49]} Qh6 {[%emt 0:05:06]} 21. Bb5 {[%emt 0:03:24]} f5 {[%emt 0:05:31]} 22. Qe3 {[%emt 0:01:16]} Qxe3 {[%emt 0:01:16]} 23. Rxe3 {[%emt 0:00:07]} Red8 {[%emt 0:00:18]} 24. Red3 {[%emt 0:06:03]} Rxd3 {[%emt 0:01:14]} 25. Rxd3 {[%emt 0:00:26]} Kf7 {[%emt 0:02:39]} 26. c6 {[%emt 0:11:19]} a6 {[%emt 0:05:13]} 27. Ba4 {[%emt 0:00:17]} b5 {[%emt 0:00:26]} 28. Bb3 {[%emt 0:00:46]} Rd8 {[%emt 0:02:49]} 29. Rxd8 {[%emt 0:03:59]} Bxd8 {[%emt 0:00:06]} 30. Bxe5 {[%emt 0:00:12]} Bxb3 {[%emt 0:00:13]} 31. c7 {[%emt 0:00:01]} Bxc7 {[%emt 0:00:08]} 32. Bxc7 {[%emt 0:00:01]} Ke6 {[%emt 0:00:18]} 33. f3 {[%emt 0:00:37]} Kd5 {[%emt 0:00:12]} 34. Kf2 {[%emt 0:00:06]} Bc2 {[%emt 0:00:34]} 35. Ke3 {[%emt 0:00:12]} g5 {[%emt 0:00:38]} 36. Kd2 {[%emt 0:01:58]} Bb1 {[%emt 0:00:25]} 37. g4 {[%emt 0:01:15]} fxg4 {[%emt 0:00:19]} 38. fxg4 {[%emt 0:00:01]} Ke4 {[%emt 0:00:12]} 39. Ke2 {[%emt 0:00:47]} Kd4 {[%emt 0:10:23]} 40. Bd8 {[%emt 0:00:44]} Kc3 {[%emt 0:00:06]} 41. Bxg5 {[%emt 0:30:23]} Kb3 {[%emt 0:30:18]} 42. Bc1 {[%emt 0:00:49]} Kc2 {[%emt 0:00:20]} 43. Bd2 {[%emt 0:00:06]} Kb3 {[%emt 0:00:10]} 44. h4 {[%emt 0:00:30]} Kxa3 {[%emt 0:00:06]} 45. Ke3 {[%emt 0:00:13]} Kb3 {[%emt 0:00:08]} 46. Kd4 {[%emt 0:01:19]} Bc2 {[%emt 0:00:21]} 47. Ke5 {[%emt 0:02:44]} Kc4 {[%emt 0:00:14]} 48. g5 {[%emt 0:03:40]} Kd3 {[%emt 0:01:35]} 49. Be1 {[%emt 0:01:34]} Ke2 {[%emt 0:00:15]} 50. Bc3 {[%emt 0:00:07]} Kf3 {[%emt 0:00:06]} 51. h5 {[%emt 0:02:05]} Kg4 {[%emt 0:00:16]} 52. g6 {[%emt 0:00:15]} hxg6 {[%emt 0:00:05]} 53. h6 {[%emt 0:00:41]} g5 {[%emt 0:00:05]} 54. Kf6 {[%emt 0:00:14]} Kh5 {[%emt 0:02:21]} 55. Kg7 {[%emt 0:00:14]} g4 {[%emt 0:00:23]} 56. Be5 {[%emt 0:07:23]} Kg5 {[%emt 0:05:59]} 57. Bc7 {[%emt 0:00:11]} Bd3 {[%emt 0:05:01]} 58. h7 {[%emt 0:06:03]} Bxh7 {[%emt 0:00:05]} 59. Kxh7 {[%emt 0:00:01]} Kf5 {[%emt 0:00:11]} 60. Kh6 {[%emt 0:00:09]} Ke6 {[%emt 0:00:25]} 61. Kg5 {[%emt 0:00:40]} Kd7 {[%emt 0:00:09]} 62. Bg3 {[%emt 0:01:07]} a5 {[%emt 0:01:50]} 63. bxa5 {[%emt 0:00:01]} Kc6 {[%emt 0:00:06]} 64. Kxg4 {[%emt 0:01:14]} Kb7 {[%emt 0:00:07]} 65. Kf5 {[%emt 0:00:09]} b4 {[%emt 0:00:19]} 66. Ke4 {[%emt 0:00:07]} b3 {[%emt 0:00:20]} 67. Kd3 {[%emt 0:00:01]} b2 {[%emt 0:00:03]} 68. Kc2 {[%emt 0:00:06]} b1=B+ {[%emt 0:00:10]} 69. Kxb1 {[%emt 0:00:12]} Ka8 {[%emt 0:00:04]} 70. Kb2 {[%emt 0:00:06]} Kb7 {[%emt 0:00:05]} 71. Kb3 {[%emt 0:00:04]} Ka8 {[%emt 0:00:04]} 72. Kb4 {[%emt 0:00:04]} Kb7 {[%emt 0:00:03]} 73. Kb5 {[%emt 0:00:05]} Ka8 {[%emt 0:01:05]} 74. a6 {[%emt 0:00:08]} Ka7 {[%emt 0:00:07]} 75. Bf2+ {[%emt 0:00:04]} Ka8 {[%emt 0:00:05]} 76. Kb6 {[%emt 0:00:07]} Kb8 {[%emt 0:00:05]} 77. Bc5 {[%emt 0:00:10]} Ka8 {[%emt 0:00:06]} 78. a7 {[%emt 0:00:07]} 1/2-1/2

[Event "Oberliga Wuerttemberg 2023-24"]
[Site "Wuerttemberg"]
[Date "2024.04.14"]
[Round "9.29"]
[White "Bossinger, Patrick"]
[Black "Gustain, Marc"]
[Result "0-1"]
[ECO "B01"]
[WhiteElo "2087"]
[BlackElo "2186"]
[Annotator "RC"]
[PlyCount "166"]
[EventDate "2024.03.14"]
[EventType "team-tourn"]
[EventCountry "GER"]
[SourceTitle "playchess.com"]
[Source "ChessBase"]
[SourceQuality "1"]
[TimeControl "40/5400+30:1800+30"]

1. e4 {[%emt 0:00:06]} d5 {[%emt 0:00:55]} 2. exd5 {[%emt 0:00:17]} Qxd5 {[%emt 0:00:03]} 3. Nc3 {[%emt 0:00:37]} Qd8 {[%emt 0:00:05]} 4. Nf3 {[%emt 0:02:33]} Nf6 {[%emt 0:00:50]} 5. Bc4 {[%emt 0:02:24]} a6 {[%emt 0:02:17]} 6. a4 {[%emt 0:05:54]} Nc6 {[%emt 0:01:51]} 7. h3 {[%emt 0:01:06]} Bf5 {[%emt 0:01:52]} 8. d3 {[%emt 0:04:44]} e6 {[%emt 0:03:37]} 9. O-O {[%emt 0:03:50]} Be7 {[%emt 0:03:50]} 10. Bf4 {[%emt 0:08:41]} O-O {[%emt 0:04:04]} 11. Nh4 {[%emt 0:08:03]} Nd4 {[%emt 0:08:34]} 12. Nxf5 {[%emt 0:00:37]} Nxf5 {[%emt 0:00:31]} 13. Re1 {[%emt 0:04:58]} Bd6 {[%emt 0:05:51]} 14. Bxd6 {[%emt 0:05:19]} Nxd6 {[%emt 0:04:03]} 15. Bb3 {[%emt 0:00:54]} c5 {[%emt 0:03:25]} 16. a5 {[%emt 0:07:54]} Qc7 {[%emt 0:03:30]} 17. Qf3 {[%emt 0:06:32]} Nf5 {[%emt 0:04:00]} 18. Ne2 {[%emt 0:02:14]} Rad8 {[%emt 0:04:03]} 19. Red1 {[%emt 0:03:47]} Ne7 {[%emt 0:11:59]} 20. Qf4 {[%emt 0:04:38]} Rd6 {[%emt 0:12:54]} 21. c3 {[%emt 0:04:23]} Rfd8 {[%emt 0:01:17]} 22. Qc4 {[%emt 0:03:20]} Qc6 {[%emt 0:09:43]} 23. Bc2 {[%emt 0:04:24]} Qd5 {[%emt 0:01:52]} 24. Qa4 {[%emt 0:01:35]} Qc6 {[%emt 0:00:23]} 25. Qc4 {[%emt 0:02:05]} Qd5 {[%emt 0:00:05]} 26. Qa4 {[%emt 0:00:23]} Qe5 {[%emt 0:00:46]} 27. Re1 {[%emt 0:00:55]} Qg5 {[%emt 0:01:06]} 28. Qf4 {[%emt 0:02:52]} Qxf4 {[%emt 0:00:44]} 29. Nxf4 {[%emt 0:00:02]} Nc6 {[%emt 0:00:36]} 30. g3 {[%emt 0:02:32]} Nd7 {[%emt 0:03:50]} 31. h4 {[%emt 0:01:46]} Nde5 {[%emt 0:01:00]} 32. Kg2 {[%emt 0:00:58]} h6 {[%emt 0:01:49]} 33. h5 {[%emt 0:00:19]} Ng4 {[%emt 0:00:45]} 34. Ra4 {[%emt 0:00:54]} Nf6 {[%emt 0:00:14]} 35. Rh1 {[%emt 0:03:16]} Nd5 {[%emt 0:01:20]} 36. Ne2 {[%emt 0:01:20]} Nf6 {[%emt 0:01:31]} 37. Rc4 {[%emt 0:01:20]} Nd7 {[%emt 0:00:24]} 38. Ra1 {[%emt 0:00:53]} Nce5 {[%emt 0:01:03]} 39. Re4 {[%emt 0:00:56]} Nxd3 {[%emt 0:00:40]} 40. Rd1 {[%emt 0:00:31]} Nf6 {[%emt 0:00:19]} 41. Rc4 {[%emt 0:05:46]} Nxh5 {[%emt 0:06:39]} 42. Bxd3 {[%emt 0:01:58]} Rxd3 {[%emt 0:00:56]} 43. Rxd3 {[%emt 0:00:23]} Rxd3 {[%emt 0:00:21]} 44. Rxc5 {[%emt 0:00:31]} Nf6 {[%emt 0:03:09]} 45. Rc8+ {[%emt 0:01:49]} Kh7 {[%emt 0:00:28]} 46. Nd4 {[%emt 0:01:59]} e5 {[%emt 0:03:20]} 47. Nb3 {[%emt 0:00:57]} e4 {[%emt 0:03:14]} 48. Rb8 {[%emt 0:01:33]} Rd7 {[%emt 0:02:37]} 49. Nc5 {[%emt 0:00:32]} Rd2 {[%emt 0:00:08]} 50. Kg1 {[%emt 0:02:19]} Rxb2 {[%emt 0:03:26]} 51. Rxb7 {[%emt 0:00:16]} Rxb7 {[%emt 0:01:59]} 52. Nxb7 {[%emt 0:00:03]} Nd7 {[%emt 0:03:08]} 53. Nd6 {[%emt 0:07:56]} Nc5 {[%emt 0:01:42]} 54. Nxf7 {[%emt 0:00:23]} Nb3 {[%emt 0:00:48]} 55. Nd6 {[%emt 0:00:54]} Nxa5 {[%emt 0:00:04]} 56. Nxe4 {[%emt 0:00:33]} Nc6 {[%emt 0:01:07]} 57. Kf1 {[%emt 0:02:17]} Kg6 {[%emt 0:01:16]} 58. Ke2 {[%emt 0:01:38]} Kf5 {[%emt 0:00:52]} 59. Ke3 {[%emt 0:03:21]} g5 {[%emt 0:00:47]} 60. Nc5 {[%emt 0:01:17]} a5 {[%emt 0:00:29]} 61. Kf3 {[%emt 0:02:45]} h5 {[%emt 0:00:45]} 62. g4+ {[%emt 0:00:23]} hxg4+ {[%emt 0:00:25]} 63. Kg3 {[%emt 0:00:22]} Ne5 {[%emt 0:00:39]} 64. Kg2 {[%emt 0:01:27]} Nc4 {[%emt 0:00:27]} 65. Na4 {[%emt 0:00:32]} Kf4 {[%emt 0:02:43]} 66. Kh2 {[%emt 0:01:09]} Kf3 {[%emt 0:00:27]} 67. Kg1 {[%emt 0:00:01]} g3 {[%emt 0:00:33]} 68. fxg3 {[%emt 0:00:02]} Kxg3 {[%emt 0:00:07]} 69. Nc5 {[%emt 0:00:45]} g4 {[%emt 0:00:37]} 70. Ne4+ {[%emt 0:00:47]} Kf4 {[%emt 0:00:41]} 71. Nf2 {[%emt 0:00:56]} a4 {[%emt 0:00:22]} 72. Nd3+ {[%emt 0:00:12]} Ke3 {[%emt 0:00:36]} 73. Nb4 {[%emt 0:00:13]} Kd2 {[%emt 0:01:30]} 74. Na2 {[%emt 0:01:06]} Ke3 {[%emt 0:00:43]} 75. Kg2 {[%emt 0:00:27]} Kf4 {[%emt 0:00:07]} 76. Nb4 {[%emt 0:00:33]} a3 {[%emt 0:00:07]} 77. Kf2 {[%emt 0:00:12]} g3+ {[%emt 0:00:13]} 78. Kg2 {[%emt 0:00:01]} Ne3+ {[%emt 0:00:10]} 79. Kg1 {[%emt 0:00:04]} Kf3 {[%emt 0:00:17]} 80. Na2 {[%emt 0:00:59]} Nc4 {[%emt 0:00:20]} 81. Nb4 {[%emt 0:00:26]} Nb2 {[%emt 0:00:19]} 82. Na2 {[%emt 0:00:10]} Nd3 {[%emt 0:00:56]} 83. c4 {[%emt 0:00:17]} Nf4 {[%emt 0:00:18]} 0-1

[Event "Oberliga Wuerttemberg 2023-24"]
[Site "Wuerttemberg"]
[Date "2024.04.14"]
[Round "9.30"]
[White "Rempeli, Alex"]
[Black "Jaskulski, Jan"]
[Result "0-1"]
[ECO "A35"]
[WhiteElo "2094"]
[BlackElo "1997"]
[Annotator "NA RC"]
[PlyCount "94"]
[EventDate "2024.03.14"]
[EventType "team-tourn"]
[EventCountry "GER"]
[SourceTitle "playchess.com"]
[Source "ChessBase"]
[SourceQuality "1"]
[TimeControl "40/5400+30:1800+30"]

1. d4 {[%emt 0:00:03]} Nf6 {[%emt 0:00:06]} 2. Nf3 {[%emt 0:00:09]} g6 {[%emt 0:00:05]} 3. e3 {[%emt 0:00:24]} Bg7 {[%emt 0:00:10]} 4. c4 {[%emt 0:00:05]} O-O {[%emt 0:00:05]} 5. Be2 {[%emt 0:00:07]} d6 {[%emt 0:00:07]} 6. Nc3 {[%emt 0:00:17]} c5 {[%emt 0:00:10]} 7. O-O {[%emt 0:01:43]} cxd4 {[%emt 0:00:15]} 8. Nxd4 {[%emt 0:00:18]} Nc6 {[%emt 0:02:40]} 9. Re1 {[%emt 0:05:54]} Bd7 {[%emt 0:08:10]} 10. b3 {[%emt 0:05:09]} Qa5 {[%emt 0:21:08]} 11. Bb2 {[%emt 0:02:43]} Nxd4 {[%emt 0:00:37]} 12. exd4 {[%emt 0:00:36]} d5 {[%emt 0:00:08]} 13. Nxd5 {[%emt 0:21:51]} Nxd5 {[%emt 0:00:09]} 14. cxd5 {[%emt 0:00:04]} Bf6 {[%emt 0:02:16]} 15. Bf3 {[%emt 0:03:23]} Qb6 {[%emt 0:00:34]} 16. Qd2 {[%emt 0:02:00]} Rac8 {[%emt 0:01:49]} 17. Rac1 {[%emt 0:02:56]} Qa6 {[%emt 0:10:06]} 18. a3 {[%emt 0:02:08]} Kg7 {[%emt 0:00:29]} 19. g3 {[%emt 0:18:28]} Bh3 {[%emt 0:08:16]} 20. g4 {[%emt 0:11:08]} h6 {[%emt 0:01:26]} 21. Rxc8 {[%emt 0:04:20]} Rxc8 {[%emt 0:00:10]} 22. Be2 {[%emt 0:00:52]} Qd6 {[%emt 0:25:04]} 23. Qe3 {[%emt 0:04:10]} Rc2 {[%emt 0:01:48]} 24. Ba1 {[%emt 0:05:34]} Qxa3 {[%emt 0:01:36]} 25. Qxh3 {[%emt 0:00:46]} Rxe2 {[%emt 0:01:07]} 26. Rxe2 {[%emt 0:01:02]} Qxa1+ {[%emt 0:00:07]} 27. Kg2 {[%emt 0:00:32]} Qxd4 {[%emt 0:00:11]} 28. Qf3 {[%emt 0:00:31]} a5 {[%emt 0:01:27]} 29. Ra2 {[%emt 0:03:18]} b6 {[%emt 0:00:41]} 30. Ra4 {[%emt 0:00:21]} Qd2 {[%emt 0:00:23]} 31. Rf4 {[%emt 0:01:21]} b5 {[%emt 0:04:04]} 32. h4 {[%emt 0:01:02]} g5 {[%emt 0:00:23]} 33. hxg5 {[%emt 0:01:22]} hxg5 {[%emt 0:00:07]} 34. Rf5 {[%emt 0:00:47]} a4 {[%emt 0:00:20]} 35. bxa4 {[%emt 0:00:50]} bxa4 {[%emt 0:00:09]} 36. Qa3 {[%emt 0:00:58]} Qd4 {[%emt 0:06:50]} 37. Kh3 {[%emt 0:01:02]} Qc3+ {[%emt 0:04:00]} 38. Rf3 {[%emt 0:00:15]} Qe1 {[%emt 0:00:28]} 39. Kg2 {[%emt 0:00:30]} Qe4 {[%emt 0:00:27]} 40. Kg3 {[%emt 0:01:31]} Be5+ {[%emt 0:00:38]} 41. Kg2 {[%emt 0:19:26]} Qxg4+ {[%emt 0:01:24]} 42. Kf1 {[%emt 0:00:18]} Qc4+ {[%emt 0:03:53]} 43. Rd3 {[%emt 0:00:46]} Bd6 {[%emt 0:08:41]} 44. Qa1+ {[%emt 0:02:45]} f6 {[%emt 0:00:00]} 45. Ke2 {[%emt 0:00:32]} a3 {[%emt 0:00:00]} 46. Qd4 {[%emt 0:04:16]} Qa6 {[%emt 0:00:00]} 47. f4 {[%emt 0:02:05]} a2 {[%emt 0:03:52]} 0-1